Cogmind - Beta 16 @@@ ROGUE MODE // 2025.10.27 @ 13:28:25 Player: Ae Result: Destroyed by D-53 Grenadier with Mini Grenade Launcher Performance ------------- Evolutions (0) 0 Regions Visited (2) 400 Robots Destroyed (39) 195 Value Destroyed (1037) 1037 Prototype IDs (4) 80 Alien Tech Used (0) 0 Bonus (0) 0 TOTAL SCORE: 1712 Bonus ------- None Cogmind --------- Core Integrity 0/250 Matter 282/300 Energy 73/100 System Corruption 0% Temperature Cool (0) Movement Core (750) Ox14 Location -10/Mines Parts ------- > --- POWER (1) -------- (None) > --- PROPULSION (2) --- (None) > --- UTILITY (2) ------ High-capacity Storage Unit > --- WEAPON (2) ------- Heavy Assault Rifle > --- INVENTORY (20) --- Ion Engine Light Treads Heat Sink Heat Sink Improved Heat Sink Huge Storage Unit Structural Scanner Improved Terrain Scanner Hardened Light Armor Plating Hardened Light Armor Plating Hardened Light Armor Plating Mini Grenade Launcher Datajack Hammer Peak State ------------ > --- POWER ------------ Ion Engine > --- PROPULSION ------- Light Treads Compact Wheel > --- UTILITY ---------- High-capacity Storage Unit Hardened Light Armor Plating > --- WEAPON ----------- Heavy Assault Rifle Heavy Assault Rifle > --- INVENTORY -------- Ion Engine Ion Engine Light Treads Compact Wheel Heat Sink Heat Sink Huge Storage Unit Structural Scanner Improved Terrain Scanner Hardened Light Armor Plating Hardened Light Armor Plating Hardened Light Armor Plating EM Pulse Gun Heavy Assault Rifle Heavy Assault Rifle Mini Grenade Launcher Datajack Hammer [Rating: 12] Favorites ----------- Power Ion Engine Engine Ion Engine Propulsion Compact Wheel Treads Light Treads Wheel Compact Wheel Utility High-capacity Storage Unit Device Seismic Detector Storage High-capacity Storage Unit Protection Hardened Light Armor Plating Weapon Heavy Assault Rifle Energy Gun EM Pulse Gun Ballistic Gun Heavy Assault Rifle Build | -11 -10 -10 ------- Run | Yrd Mat Min Slots Evolved . | . . . Power . | . . . Propulsion . | . . . Utility . | . . . Weapon . | . . . Parts Attached 19 | 7 9 3 Power 3 | 1 2 . Engine 3 | 1 2 . Core . | . . . Reactor . | . . . Propulsion 4 | 2 1 1 Treads 1 | . 1 . Leg . | . . . Wheel 3 | 2 . 1 Hover . | . . . Flight . | . . . Utility 5 | 2 3 . Device 1 | 1 . . Storage 3 | 1 2 . Processor . | . . . Hackware . | . . . Protection 1 | . 1 . Artifact . | . . . Weapon 7 | 2 3 2 Energy Gun 2 | 1 1 . Energy Cannon . | . . . Ballistic Gun 5 | 1 2 2 Ballistic Cannon . | . . . Launcher . | . . . Special Weapon . | . . . Impact Weapon . | . . . Slashing Weapon . | . . . Piercing Weapon . | . . . Special Melee Weapon . | . . . Unidentified Prototypes . | . . . Parts Lost 13 | . 4 9 Power 2 | . 1 1 Propulsion 4 | . 1 3 Utility 2 | . 1 1 Weapon 5 | . 1 4 Highest Loss Streak 5 | . 3 5 To Critical Strikes . | . . . Average Backups 14 | 4 14 17 Power 1 | . 1 1 Propulsion 2 | 3 2 1 Utility 5 | . 5 8 Weapon 4 | . 4 4 Tool/Special . | . . . Unused Backups 21 | . 7 14 Power 2 | . 1 1 Propulsion 3 | . 2 1 Utility 10 | . 1 9 Weapon 5 | . 3 2 Tool/Special 1 | . . 1 Average Slot Usage (%) 98 | . 99 96 Engine 13 | . 13 12 Treads 6 | . 2 13 Wheel 20 | . 25 13 Device 7 | . 11 . Storage 14 | . 14 14 Protection 6 | . 2 12 Energy Gun 3 | . 5 . Ballistic Gun 24 | . 22 27 Peak Build Rating 12 | 7 12 12 Average Rating 10 | 5 10 11 On Entrance 6 | . 7 12 Avg Prop Armor Cover (%) 9 | . 9 9 Naked Turns . | . . . Heaviest Build 56 | 14 56 56 Greatest Support 32 | 32 32 16 Greatest Overweight (x) 3 | 1 3 3 Average Overweight (x) 1 | . 1 2 Largest Inventory Capacity 20 | 8 20 20 Average Capacity 18 | 7 18 20 Most Carried 20 | 7 20 18 Average Carried 14 | 4 14 17 Final Capacity 20 | 8 20 20 Final Carried 17 | 7 17 14 Class Distribution -------------------- 100% | Mutant Dominant Class ---------------- Mutant | -10/Materials Mutant | -10/Mines Resources | -11 -10 -10 ----------- Run | Yrd Mat Min Matter Collected 821 | 296 404 121 Remotely . | . . . Salvage Created 1391 | 146 912 333 Parts 86 | 17 52 17 Haulers Intercepted 1 | . 1 . Recyclers Shooed 2 | . 1 1 Parts Field Recycled . | . . . Retrieved Matter . | . . . Parts Self-Destructed . | . . . Prevented . | . . . Parts Restored . | . . . Kills | -11 -10 -10 ------- Run | Yrd Mat Min Combat Hostiles Destroyed 31 | . 23 8 Guns 30 | . 22 8 AOE 1 | . 1 . Classes Destroyed 8 | 2 5 1 Builder 1 | . 1 . Tunneler 4 | 4 . . Hauler 1 | . 1 . Recycler 1 | 1 . . Watcher 1 | . 1 . Swarmer 7 | . 6 1 Grunt 23 | . 17 6 Demolisher 1 | . . 1 Best Kill Streak 6 | 4 6 2 Combat Bots Only 5 | . 5 2 Max Kills in Single Turn 2 | 1 2 2 Gunslinging 1 | . . 1 Exploded 1 | . 1 . Melee . | . . . Uniques/NPCs Destroyed . | . . . Combat | -11 -10 -10 -------- Run | Yrd Mat Min Hostile Shots Fired 108 | . 70 38 Missed 24 | . 17 7 Hits 84 | . 53 31 Projectile 84 | . 53 31 AOE 13 | . . 13 Critical Strikes 2 | . 1 1 Damage Taken 1381 | . 547 834 Core 262 | . 96 166 Absorbed by Shields . | . . . Core Remaining (%) 100 | 100 . . Volleys Fired 116 | 26 65 25 Largest 2 | 2 2 2 Hottest 80 | 60 80 46 Shots Fired 197 | 27 125 45 Gun 197 | 27 125 45 Cannon . | . . . Launcher . | . . . Special . | . . . Kinetic 168 | 26 98 44 Thermal . | . . . Explosive . | . . . Electromagnetic 29 | 1 27 1 Robot Hit Streak 13 | 8 13 6 Robot Miss Streak 4 | 3 4 1 Penetration Max . | . . . Secondary Targets 4 | . 1 3 Max Gunslinging Chain 1 | . 1 1 Shots Hit Robots 123 | 18 75 30 Core Hits 57 | 7 36 14 Critical Kills . | . . . Critical Parts Destroyed 2 | . 1 1 Critical Strikes 2 | . 1 1 Destroy 2 | . 1 1 Melee Attacks . | . . . Impact . | . . . Slashing . | . . . Piercing . | . . . Sneak Attacks . | . . . Combat Hostiles . | . . . Follow-up Attacks . | . . . Damage Inflicted 1829 | 160 1254 415 Guns 1610 | 160 1035 415 Cannons . | . . . Explosions 219 | . 219 . Melee . | . . . Ramming . | . . . Kinetic 1358 | 160 793 405 Thermal 219 | . 219 . Explosive . | . . . Electromagnetic 252 | . 242 10 Impact . | . . . Slashing . | . . . Piercing . | . . . Highest Corruption . | . . . Average Corruption . | . . . Corruption Purged . | . . . Corruption Blocked . | . . . Overload Shots . | . . . Overflow Damage 20 | . 20 . Projectiles . | . . . Explosions 20 | . 20 . Melee . | . . . Knockbacks . | . . . Impact . | . . . Kinetic . | . . . Secondary . | . . . Self-Inflicted Damage . | . . . Shots . | . . . Rammed . | . . . Targets Rammed . | . . . Kicked . | . . . Crushed . | . . . Highest Temperature 150 | 20 150 77 Average Temperature 34 | 15 32 39 Received Heat Transfer 438 | . 243 195 Siege Activations . | . . . Martial Activations . | . . . Shielding Activations . | . . . Robots Disrupted . | . . . Combat Hostiles . | . . . Robots Corrupted . | . . . Combat Hostiles . | . . . Parts Fried 1 | . 1 . Impact Corruptions . | . . . Robots Melted . | . . . Combat Hostiles . | . . . Parts Melted . | . . . Heat Transferred 200 | . 200 . Parts Sabotaged . | . . . Parts Stolen . | . . . Parts Stripped . | . . . Power Chain Reactions 1 | . 1 . Alert | -11 -10 -10 ------- Run | Yrd Mat Min Maximum Alert Level 1 | . 1 . Low Security (%) 74 | 100 56 100 Level 1 25 | . 43 . Level 2 . | . . . Level 3 . | . . . Level 4 . | . . . Level 5 . | . . . High Security . | . . . Max Security . | . . . Peak Influence 303 | 10 303 100 Initial 100 | . . 100 Average 117 | 1 173 47 Influence Increases 1019 | 25 725 269 Destroy 0b10 Robot/C 620 | . 460 160 Destroy 0b10 Robot/NC 40 | 25 15 . Destroy Leader 154 | . 104 50 Allied During Kill 14 | . . 14 Successful Hack 31 | . 31 . Select Force Hacks 60 | . 60 . Disable Machine 15 | . 15 . Destroy Structure 25 | . 25 . Lose Combat Pursuer 60 | . 15 45 Influence Decreases 1019 | 25 468 526 Entered New Map 157 | . . 157 Time Decay 719 | 25 428 266 Lost Part 97 | . 40 57 Lost Ally 46 | . . 46 Squads Dispatched 6 | . 6 . Investigation 5 | . 5 . Extermination . | . . . Reinforcement 1 | . 1 . Assault . | . . . Garrison . | . . . Intercept . | . . . Searches Triggered . | . . . Construction Impeded . | . . . Haulers Reinforced . | . . . Active Scanning Responses . | . . . Cargo Convoy Interrupts . | . . . Stealth | -11 -10 -10 --------- Run | Yrd Mat Min Distress Signals 2 | . 2 . Communications Jammed . | . . . Distress Signals . | . . . Times Spotted 47 | . 35 12 Peak Tracking Total 5 | . 5 2 Tactical Retreats 3 | . 1 2 Traps | -11 -10 -10 ------- Run | Yrd Mat Min Traps Triggered 4 | . 4 . Indirectly . | . . . Trap Hack Attempts . | . . . Triggered . | . . . Disarmed . | . . . Reprogrammed . | . . . Reused . | . . . Traps Extracted . | . . . Installed . | . . . Triggered . | . . . Machines | -11 -10 -10 ---------- Run | Yrd Mat Min Machines Disabled 1 | . 1 . Max in Single Turn 1 | . 1 . Machines Repaired . | . . . Machines Dismantled . | . . . Machines Sabotaged . | . . . Overloaded Fab Kills . | . . . Hacking | -11 -10 -10 --------- Run | Yrd Mat Min Machines Accessed 8 | . 8 . Terminals 6 | . 6 . Fabricators . | . . . Repair Stations . | . . . Recycling Units 2 | . 2 . Scanalyzers . | . . . Garrison Access . | . . . Total Hacks 21 | . 21 . Successful 15 | . 15 . Failed 6 | . 6 . Catastrophic . | . . . Database Lockouts . | . . . Manual 17 | . 17 . Terminals 19 | . 19 . Fabricators . | . . . Repair Stations . | . . . Recycling Units 2 | . 2 . Scanalyzers . | . . . Garrison Access . | . . . Terminal Hacks 3 | . 3 . Prototype ID Bank 2 | . 2 . Zone Layout 1 | . 1 . Fabricator Hacks . | . . . Repair Station Hacks . | . . . Recycling Unit Hacks . | . . . Scanalyzer . | . . . Garrison Access Hacks . | . . . Unauthorized Hacks 12 | . 12 . Terminals 10 | . 10 . Botnet 4 | . 4 . Skim 6 | . 6 . Fabricators . | . . . Repair Stations . | . . . Recycling Units 2 | . 2 . Tunnel 2 | . 2 . Scanalyzers . | . . . Garrison Access . | . . . Data Cores Recovered . | . . . Used . | . . . Hacking Detections 3 | . 3 . Full Trace Events 1 | . 1 . Feedback Events . | . . . Feedback Blocked . | . . . Robot Schematics Acquired . | . . . Robots Built . | . . . Authchips . | . . . Time . | . . . Total Robot Build Rating . | . . . Part Schematics Acquired . | . . . Parts Built . | . . . Authchips . | . . . Time . | . . . Total Part Build Rating . | . . . Part Studies Acquired . | . . . Parts Repaired . | . . . Time . | . . . Parts Recycled . | . . . Recycled Matter . | . . . Retrieved Matter . | . . . Retrieved Components . | . . . Parts Scanalyzed . | . . . Part Schematics Acquired . | . . . Parts Damaged . | . . . Bothacking | -11 -10 -10 ------------ Run | Yrd Mat Min Used RIF Installer . | . . . Robots Hacked . | . . . Non-combat . | . . . Combat . | . . . Robot Hacks Applied . | . . . Relay Couplers Released . | . . . Fabnet Peak Effective % . | . . . Robots Rewired . | . . . Allies Hacked . | . . . Hacks Repelled . | . . . Allies | -11 -10 -10 -------- Run | Yrd Mat Min Total Allies 3 | . . 3 Largest Group 3 | . . 3 Highest-Rated Group 40 | . . 40 Highest-Rated Ally 16 | . . 16 Total Orders . | . . . Ally Attacks 14 | . . 14 Total Damage 177 | . . 177 Kills . | . . . Allies Corrupted . | . . . Allies Melted . | . . . Intel | -11 -10 -10 ------- Run | Yrd Mat Min Active Infowar (turns) 919 | 32 887 . Seismic 919 | 32 887 . Robot Analysis Total . | . . . Derelict Logs Recovered 1 | . . 1 Drone Launches . | . . . Drone Recoveries . | . . . Exploration | -11 -10 -10 ------------- Run | Yrd Mat Min Turns Passed 1856 | 143 1088 625 Spaces Moved 1120 | 79 663 378 Core 3 | 3 . . Treads . | . . . Legs . | . . . Wheels 1117 | 76 663 378 Hover . | . . . Flight . | . . . Fastest Speed 50 | 50 100 130 Average Speed 125 | 98 117 143 Slowest Speed 145 | 100 145 145 Overloaded Moves . | . . . Propulsion Burnouts . | . . . Robots Hopped . | . . . Potential Cave-ins 4 | . . 4 Cave-ins Triggered . | . . . Exploration Rate (%) 58 | 5 89 82 Regions Visited 2 Branch Regions 1 Pre-discovered Areas 2 | . 2 . Known Exits Taken . | . . . Unknown Exits Taken 2 | 1 1 . Scrap Searched 3 | . . 3 Spaces Dug . | . . . Terrain Destroyed 19 | . 19 . Melee . | . . . Projectile . | . . . AOE 19 | . 19 . Terrain Rammed . | . . . Walls Destroyed . | . . . Machines Disabled . | . . . Actions | -11 -10 -10 --------- Run | Yrd Mat Min Total 1384 | 118 852 414 Wait 78 | . 72 6 Move 1118 | 78 662 378 Hop . | . . . Pick Up 32 | 7 24 1 Fast Attach 12 | 7 5 . Attach 8 | . 4 4 Detach . | . . . Swap 7 | . 7 . Drop 13 | . 13 . Fire 116 | 26 65 25 Melee . | . . . Ram . | . . . Kick . | . . . Crush . | . . . Escape Stasis . | . . . Rewire . | . . . Trap . | . . . Miscellaneous . | . . . Route ------- -11/Scrapyard -10/Materials (discovered 4 exits: [*Mat x2] / [*Min] / [*Sub]) -10/Mines (discovered 2 exits: [*Mat] / [*Sub]) History --------- Turn | Location | Event 14 | -11/Scrapyard | Discovered new exit (range 15) 144 | -11/Scrapyard | Entered Materials 282 | -10/Materials | Discovered new exit (range 9) 309 | -10/Materials | Build established: Mutant 493 | -10/Materials | Discovered new exit (range 15) 777 | -10/Materials | Discovered new exit (range 10) 916 | -10/Materials | Discovered new exit (range 16) 1082 | -10/Materials | Lost 3 parts (1p1n1u) 1232 | -10/Materials | Entered Mines 1457 | -10/Mines | Discovered new exit (range 4) 1567 | -10/Mines | Assisted by bots powering up and referring to "LRC-V3" 1596 | -10/Mines | Discovered new exit (range 10) 1673 | -10/Mines | Learned 2 Materials zone layouts 1683 | -10/Mines | Core integrity fell below 50% 1780 | -10/Mines | Assembled infested the area 1852 | -10/Mines | Core integrity fell below 20% 1857 | -10/Mines | Destroyed by D-53 Grenadier with Mini Grenade Launcher Last Messages --------------- 01755_ G-34 Mercenary destroyed. 01768_ Acquired 12 matter. 01780_ ALERT: Infestation in the mines, dispatching Demolisher response squad. 01797_ C-45 Heavy ARC bursts open, deploying its payload. 01797_ D-53 Grenadier unfolds itself. 01800_ Ion Engine destroyed. 01802_ Trooper 1a destroyed. 01802_ Trooper 1b destroyed. 01802_ Hrd. Light Armor Plating destroyed. 01807_ The unstable cave ceiling collapses. 01816_ K-01 Serf collects debris. 01844_ Lgt. Treads destroyed. 01844_ D-53 Grenadier destroyed. 01847_ The unstable cave ceiling collapses. 01847_ Hvy. Assault Rifle destroyed. 01849_ The unstable cave ceiling collapses. 01849_ Com. Wheel destroyed. 01851_ Hvy. Assault Rifle destroyed. 01853_ EM Pulse Gun destroyed. 01857_ The unstable cave ceiling collapses. Map ----- +----------------------------------------------------+ | | | | | | | | | | | | | ??????????????????????????????????????????? | | ????????????????????????#####?????????????? | | ????????######?????????## ############### | | ???????## ##????????# # | | ??????## #####????# = ! | | ?????## ##???## %*%[ | | ?????# ###### = ## | | ?????# =% ## ### | | ?????## #####?# # | | ??????## ! !%= ##?????# | | ???????# #### ##### #??????## | | ???????# ##??# #???## #???????## | | ???????# #???# #????## ##????????## | | ???????## ##???# ####### #??????????### | | ????????## ##?#### #????????????# | | ?????????####?## # #### #?????? | | ?????????????## #??# #?????? | | ?????????????# #??######## #?????? | | ??????????????# #????????????#?????? | | ??????????????# @ d #??????????????????? | | ?????????????# # ##??????????????????? | | ?????????????# #??????????????????? | | ?????????????# ##??????????????????? | | ?????????????# ##???????????????????? | | ?????????????#### ###????????????????????? | | ????????????????# ##??????????????????????? | | ????????????????# #???????????????????????? | | ????????????????# #???????????????????????? | | ????????????????# #???????????????????????? | | ????????????????# #???????????????????????? | | ????????????????# #?????????????????? ???? | | ????????????????# #???????????????? ??? | | ????????????????# #?????????###??# ??? | | ????????????????# #????????# ##?# #?? | | ???????????????## #???##### ### #? | | ??????????????## ##### # | | ?????????????## | | ???????????### #????? | | ??????????## #### ##??????? | | ??????????# """ ##?## #?????????# | | ??????????# """ #?## ##??????????# | | ??????????## """ #?# ##??????????## | | ???????????### #?# ##??????????## | | ?????????????# #?# ##???????????# | +----------------------------------------------------+ Best States ------------- Heat Dissipation 25 Energy Generation 10 Energy Capacity 250 Matter Stores 300 Matter Capacity 300 Sight Range 16 Terrain Scan Density 10 Armor Coverage 150 Evasion (%) 40 Recoil Reduction 1 Item Schematics ----------------- None Robot Schematics ------------------ None Fabricated ------------ Nothing Repaired ---------- Nothing Studied --------- None Alien Tech Used ----------------- None Achievements -------------- None Challenges ------------ None Game ------ Seed BlanketTrapFalx Manual? 0 Play Time 00:14:20 Cumulative 107.1 hours Start 2025.10.27 @ 13:16:40 End 2025.10.27 @ 13:28:25 Sessions 1 Manual Loads 0 Difficulty Rogue Special Mode None Game No. 177 Rogue 149 Adventurer 28 Explorer 0 Win Type - Total 0 Types 0/0/0/0/0/0/0/0/0/0 Lore% 44 Gallery% 32 Achievement% 24 Wizard Run 0 Options --------- Layout 0 ASCII 0 Keyboard 1 Movement Numpad Keybinds 0 Fullscreen 2 Font 28/SmallcapsGlow Map View 84x54 Zoom Use 0% Tactical HUD 1 Map Filters NONE Filters NONE Steam 1 RUN: 5decd24d-b47d-40b2-b2c5-e1856361deb2